bitfinex-derivatives/quotes_BTCF0:USTF0_20220103
["timestamp","ask_amount","ask_price","bid_price","bid_amount"]
[1641245588579,1.71323371,46106.0,46098.0,0.08844995]
[1641245588986,0.0501,46110.0,46099.0,0.001]
[1641245589182,0.14386156,46113.0,46102.0,0.18919995]
[1641245589381,1.8705,46115.0,46112.0,0.00819995]
[1641245589584,1.8705,46115.0,46112.0,0.08199995]
[1641245589779,1.97928453,46119.0,46113.0,0.009794]
[1641245589983,0.02168453,46119.0,46118.0,0.00819995]
[1641245590481,1.79941311,46123.0,46118.0,0.01799395]
[1641245590881,1.79941311,46123.0,46118.0,0.19799395]
[1641245591282,1.71506097,46124.0,46118.0,0.19799395]
[1641245591482,1.71506097,46124.0,46118.0,0.38699395]
[1641245591687,0.0001,46130.0,46119.0,0.02167603]
[1641245591882,0.0001,46130.0,46129.0,0.00819995]
[1641245592085,0.17180005,46133.0,46126.0,0.00819995]
[1641245592284,0.17180005,46129.0,46128.0,0.14033567]
[1641245592583,0.17280005,46129.0,46118.0,0.189]
[1641245592783,0.17180005,46119.0,46118.0,0.189]
[1641245592984,0.24821005,46119.0,46118.0,0.189]
[1641245593182,0.26989691,46119.0,46110.0,0.00819995]
[1641245593384,0.17180005,46113.0,46104.0,1.39763729]
[1641245593584,0.17180005,46109.0,46104.0,1.38943734]
[1641245593785,0.25437005,46109.0,46104.0,1.38943734]
[1641245594285,0.25437005,46109.0,46105.0,0.14033567]
[1641245595185,1.22484505,46108.0,46106.0,0.00819995]
[1641245595785,1.22484505,46108.0,46105.0,0.64938832]
[1641245595986,0.27057,46109.0,46106.0,0.00819995]
[1641245596189,0.188,46109.0,46106.0,0.00819995]
[1641245596885,1.14,46114.0,46106.0,0.00819995]
[1641245597292,1.14,46114.0,46105.0,0.14033567]
[1641245597490,0.17180005,46107.0,46105.0,0.14033567]
[1641245597691,0.23594005,46107.0,46105.0,0.14033567]
[1641245598390,0.06414,46107.0,46105.0,0.14033567]
[1641245598590,0.23594005,46107.0,46105.0,0.14033567]
[1641245598789,0.06414,46107.0,46105.0,0.14033567]
[1641245599291,0.23594005,46107.0,46105.0,0.14033567]
[1641245599492,0.42394005,46107.0,46105.0,0.14033567]
[1641245599692,0.25214,46107.0,46105.0,0.14033567]
[1641245600292,0.25214,46107.0,46106.0,0.00819995]
[1641245600491,0.25214,46107.0,46105.0,0.14033567]
[1641245600893,0.06414,46107.0,46105.0,0.14033567]
[1641245601095,0.02168528,46117.0,46106.0,0.00819995]
[1641245601295,0.31213572,46116.0,46105.0,0.14033567]
[1641245601495,0.50013572,46116.0,46107.0,0.00819995]
[1641245601693,0.17180005,46115.0,46107.0,0.00819995]
[1641245601894,0.02168675,46114.0,46107.0,0.00819995]
[1641245602094,0.02168675,46114.0,46112.0,0.00819995]
[1641245602896,0.32833567,46116.0,46112.0,0.00819995]
[1641245603094,0.32833567,46116.0,46115.0,0.00819995]
[1641245603497,0.32933567,46116.0,46115.0,0.00819995]
[1641245603897,0.32933567,46116.0,46112.0,0.083]
[1641245604298,0.39068567,46116.0,46112.0,0.083]
[1641245604498,0.02168672,46114.0,46112.0,0.083]
[1641245604897,0.02168672,46114.0,46108.0,0.00819995]
[1641245605298,0.14033567,46116.0,46111.0,0.00819995]
[1641245605597,0.188,46114.0,46111.0,0.00819995]
[1641245606899,0.14033567,46116.0,46111.0,0.00819995]
[1641245607098,0.14033567,46116.0,46114.0,0.00819995]
[1641245607298,0.16201971,46120.0,46114.0,0.00819995]
[1641245607497,0.156,46116.0,46114.0,0.16019995]
[1641245607701,0.156,46116.0,46115.0,0.00819995]
[1641245608908,0.14033567,46120.0,46115.0,0.00819995]
[1641245609305,0.14033567,46120.0,46112.0,0.21559567]
[1641245609506,0.33233567,46120.0,46118.0,0.00819995]
[1641245609906,0.33233567,46120.0,46114.0,0.00819995]
[1641245610309,0.17180005,46119.0,46114.0,0.00819995]
[1641245610706,0.33233567,46120.0,46114.0,0.00819995]
[1641245610906,0.14033567,46120.0,46119.0,0.00819995]
[1641245611706,0.32433567,46120.0,46119.0,0.18819995]
[1641245611908,0.32433567,46120.0,46119.0,0.36819995]
[1641245612508,0.32433567,46120.0,46119.0,0.38887574]
[1641245612706,0.184,46120.0,46119.0,0.38987574]
[1641245612909,0.14033567,46125.0,46119.0,0.21087574]
[1641245613108,0.14033567,46125.0,46124.0,0.00819995]
[1641245613307,0.14033567,46125.0,46124.0,0.06608995]
[1641245613507,0.17633567,46125.0,46124.0,0.24808995]
[1641245613708,0.17633567,46125.0,46124.0,0.25788395]
[1641245614109,0.14033567,46132.0,46124.0,0.25788395]
[1641245614309,0.02167312,46143.0,46131.0,0.00819995]
[1641245614510,0.14033567,46139.0,46135.0,0.00819995]
[1641245614919,0.14033567,46144.0,46135.0,0.00819995]
[1641245615322,3.6317,46145.0,46135.0,0.02986842]
[1641245615622,0.16,46136.0,46135.0,0.21886842]
[1641245616520,0.16,46136.0,46135.0,0.35920409]
[1641245616720,0.16,46136.0,46135.0,0.99835164]
[1641245616921,1.01126049,46136.0,46135.0,0.68935164]
[1641245617121,0.85126049,46136.0,46135.0,0.68935164]
[1641245617521,0.85126049,46136.0,46135.0,0.88035164]
[1641245618321,0.85126049,46136.0,46135.0,0.85868317]
[1641245618922,1.21633333,46138.0,46135.0,0.66768317]
[1641245619121,1.21633333,46137.0,46135.0,0.66768317]
[1641245619524,1.21633333,46137.0,46135.0,0.84568317]
[1641245619720,1.39833333,46137.0,46135.0,0.84568317]
[1641245619921,1.39833333,46137.0,46136.0,0.51914755]
[1641245620924,2.0731686,46137.0,46136.0,0.51914755]
[1641245621122,0.85683527,46137.0,46136.0,0.51914755]
[1641245621523,0.99083527,46137.0,46136.0,0.70614755]
[1641245622325,1.04263532,46137.0,46136.0,0.70614755]
[1641245622526,1.16263532,46137.0,46128.0,1.40743129]
[1641245622725,0.17180005,46133.0,46128.0,0.01799395]
[1641245623125,0.94217135,46137.0,46128.0,0.01799395]
[1641245623328,0.85683527,46131.0,46128.0,0.00819995]
[1641245623925,0.85683527,46131.0,46129.0,0.32033567]
[1641245624325,1.21633333,46133.0,46129.0,0.32033567]
[1641245624527,1.21633333,46131.0,46129.0,0.18]
[1641245624727,1.21633333,46131.0,46130.0,0.00819995]
[1641245625726,1.40633333,46131.0,46130.0,0.00819995]
[1641245625930,0.19,46131.0,46130.0,0.00819995]
[1641245626526,0.19,46131.0,46130.0,0.18819995]
[1641245626727,0.8568769,46133.0,46130.0,0.00819995]
[1641245627026,0.8568769,46133.0,46130.0,0.02986841]
[1641245627427,0.8568769,46133.0,46130.0,0.00819995]
[1641245627628,0.8568769,46135.0,46132.0,0.18]
[1641245627828,0.8568769,46135.0,46134.0,0.20986842]
[1641245628028,0.8568769,46135.0,46134.0,0.21966242]
[1641245628431,1.21633333,46137.0,46134.0,0.36099809]
[1641245628629,0.8568769,46138.0,46136.0,0.001]
[1641245628830,0.8568769,46138.0,46137.0,0.18]
[1641245629530,0.8568769,46138.0,46137.0,0.00819995]
[1641245629834,0.8569769,46140.0,46137.0,0.38019995]
[1641245630735,0.8568769,46139.0,46137.0,0.20019995]
[1641245630938,0.8568769,46139.0,46138.0,0.18]
[1641245631535,0.8568769,46139.0,46138.0,0.372]
[1641245632237,0.0001,46140.0,46138.0,0.372]
[1641245632938,0.0001,46140.0,46138.0,0.18]
[1641245633540,0.0001,46140.0,46138.0,0.373]
[1641245633738,0.0001,46140.0,46138.0,0.193]
[1641245633943,0.0001,46140.0,46138.0,0.373]
[1641245635641,0.0001,46140.0,46138.0,0.569]
[1641245636239,0.0001,46140.0,46138.0,0.389]
[1641245636639,0.0001,46140.0,46138.0,0.569]
[1641245637040,0.0001,46140.0,46138.0,0.18]
[1641245637243,1.9013,46156.0,46139.0,0.43142328]
[1641245637445,0.21848439,46160.0,46155.0,0.18819995]
[1641245637645,0.0001,46160.0,46159.0,0.18819995]
[1641245637843,0.0001,46160.0,46159.0,0.01799395]
[1641245638043,0.17190005,46160.0,46155.0,0.06945]
[1641245638245,0.0001,46160.0,46155.0,0.06945]
[1641245638444,0.0001,46160.0,46159.0,0.00819995]
[1641245639651,0.0001,46160.0,46159.0,0.20219995]
[1641245641552,0.0001,46160.0,46159.0,0.20419995]
[1641245642953,0.0001,46160.0,46159.0,0.00819995]
[1641245643354,0.0001,46160.0,46159.0,0.10218995]
[1641245643554,0.0001,46160.0,46159.0,0.29818995]
[1641245645058,0.0001,46160.0,46159.0,0.10218995]
[1641245645655,0.0001,46160.0,46159.0,0.29918995]
[1641245646057,0.0001,46160.0,46159.0,0.47918995]
[1641245646259,0.0001,46160.0,46159.0,0.50084719]
[1641245646859,0.0001,46160.0,46159.0,0.32084719]
[1641245647060,0.0001,46160.0,46159.0,0.12384719]
[1641245647760,0.0001,46160.0,46159.0,0.78745495]
[1641245649058,0.0001,46160.0,46159.0,0.59245495]
[1641245649660,0.0001,46160.0,46159.0,0.79145495]
[1641245650863,1.21643333,46160.0,46159.0,0.59245495]
[1641245651660,1.21643333,46160.0,46159.0,0.78845495]
[1641245653063,0.14033567,46165.0,46159.0,0.77245495]
[1641245653264,0.16199386,46175.0,46164.0,0.2098554]
[1641245653265,0.14033567,46175.0,46164.0,0.2098554]
[1641245653463,0.14033567,46175.0,46169.0,0.00819995]
[1641245653663,0.17180005,46173.0,46169.0,0.08817]
[1641245654067,0.14033567,46175.0,46169.0,0.08817]
[1641245654265,0.31213572,46175.0,46169.0,0.09636995]
[1641245654464,0.0001,46170.0,46169.0,0.09636995]
[1641245655664,0.0001,46170.0,46169.0,0.27536995]
[1641245655865,0.0001,46170.0,46169.0,0.76563495]
[1641245656064,0.14033567,46175.0,46169.0,0.76563495]
[1641245656266,0.14033567,46175.0,46170.0,0.009794]
[1641245656464,0.14033567,46175.0,46174.0,0.00819995]
[1641245657065,0.31213572,46175.0,46173.0,0.00819995]
[1641245657265,0.14033567,46175.0,46173.0,0.00819995]
[1641245657465,0.14033567,46175.0,46174.0,0.001]
[1641245658072,0.0001,46180.0,46174.0,0.001]
[1641245658268,0.0001,46180.0,46178.0,0.00819995]
[1641245659069,0.0001,46180.0,46179.0,0.02164767]
[1641245659269,0.0001,46180.0,46179.0,0.10955767]
[1641245659467,0.0001,46180.0,46179.0,0.11055767]
[1641245659667,0.0001,46180.0,46179.0,0.28955767]
[1641245659868,1.9207,46190.0,46179.0,0.26791]
[1641245660070,1.9207,46190.0,46185.0,0.00819995]
[1641245660671,0.17180005,46189.0,46185.0,0.00819995]
[1641245660871,1.9207,46190.0,46185.0,0.00819995]
[1641245661670,1.9207,46190.0,46185.0,0.18319995]
[1641245662070,0.0001,46190.0,46186.0,0.001]
[1641245662670,0.0001,46190.0,46186.0,0.02264502]
[1641245663372,0.0001,46190.0,46189.0,0.00919995]
[1641245663585,1.8547,46202.0,46189.0,0.09432995]
[1641245663773,1.8547,46202.0,46195.0,0.00819995]
[1641245665780,1.8547,46202.0,46195.0,0.18619995]
[1641245666181,1.8547,46202.0,46196.0,0.20164008]
[1641245666380,1.8547,46202.0,46199.0,0.00819995]
[1641245666580,0.14033567,46204.0,46199.0,0.06731995]
[1641245667682,0.14033567,46204.0,46201.0,0.38284936]
[1641245667980,0.14033567,46204.0,46203.0,0.0298365]
[1641245668183,0.0001,46210.0,46203.0,0.70163655]
[1641245668384,1.9525,46228.0,46209.0,0.18819995]
[1641245668581,0.17180005,46227.0,46219.0,0.00819995]
[1641245668785,0.17180005,46227.0,46219.0,0.38107129]
[1641245669185,0.17180005,46227.0,46219.0,0.37287134]
[1641245669384,0.17180005,46226.0,46219.0,0.38107129]
[1641245669586,0.17180005,46226.0,46219.0,0.45408038]
[1641245669885,0.17180005,46226.0,46219.0,0.63408038]
[1641245670286,0.17180005,46223.0,46219.0,0.56107129]
[1641245670485,0.17180005,46223.0,46219.0,0.55287134]
[1641245670786,0.0001,46230.0,46219.0,0.56107129]
[1641245670984,0.17180005,46223.0,46219.0,0.37287134]
[1641245671195,0.17180005,46222.0,46219.0,0.37287134]
[1641245671396,0.17180005,46228.0,46219.0,0.37287134]
[1641245671596,0.0001,46230.0,46219.0,0.37287134]
[1641245671796,0.0001,46230.0,46219.0,0.55287134]
[1641245672099,0.0001,46230.0,46223.0,0.00819995]
[1641245672796,0.0001,46230.0,46219.0,0.55187134]
[1641245672797,0.0001,46230.0,46224.0,0.14033567]
[1641245673299,0.17180005,46225.0,46224.0,0.14033567]
[1641245673700,0.17180005,46225.0,46224.0,0.31433567]
[1641245674498,0.0001,46230.0,46224.0,0.31433567]
[1641245675200,0.17180005,46225.0,46205.0,0.27705606]
[1641245675400,0.12,46208.0,46198.0,0.33251729]
[1641245675603,0.07898,46208.0,46207.0,0.00819995]
[1641245676401,0.25078005,46208.0,46205.0,0.168]
[1641245676601,0.2724231,46208.0,46196.0,0.00819995]
[1641245676802,0.2724231,46208.0,46200.0,0.14033567]
[1641245676803,0.17180005,46205.0,46200.0,0.14033567]
[1641245677002,0.17180005,46201.0,46200.0,0.14033567]
[1641245677202,0.18159405,46204.0,46200.0,0.14033567]
[1641245677401,0.17180005,46201.0,46200.0,0.14033567]
[1641245677800,0.35859405,46204.0,46200.0,0.14033567]
[1641245678001,0.17180005,46201.0,46200.0,0.14033567]
[1641245678202,1.21246032,46202.0,46200.0,0.14033567]
[1641245678402,0.12,46201.0,46200.0,0.14033567]
[1641245678603,0.19344684,46201.0,46191.0,0.14033567]
[1641245678905,0.17180005,46192.0,46182.0,0.74070914]
[1641245679103,0.17180005,46189.0,46182.0,0.74070914]
[1641245679307,0.17180005,46184.0,46182.0,0.74070914]
[1641245679506,0.17180005,46189.0,46183.0,0.63392479]
[1641245679713,0.167,46189.0,46188.0,0.00819995]
[1641245680910,0.14033567,46190.0,46185.0,0.00819995]
[1641245681110,1.36303867,46190.0,46185.0,0.00819995]
[1641245681510,1.36303867,46190.0,46184.0,0.46436123]
[1641245681910,0.17180005,46185.0,46184.0,0.46436123]
[1641245682110,1.36303867,46190.0,46184.0,0.46336123]
[1641245682312,1.36303867,46190.0,46186.0,0.46336123]
[1641245683113,1.36303867,46190.0,46189.0,0.00819995]
[1641245683712,1.36303867,46190.0,46186.0,0.46336123]
[1641245683912,1.36303867,46190.0,46189.0,0.00819995]
[1641245684514,0.14033567,46190.0,46189.0,0.00819995]
[1641245685416,0.14033567,46207.0,46189.0,0.00919995]
[1641245685616,0.14033567,46207.0,46201.0,0.00819995]
[1641245685815,0.14033567,46207.0,46201.0,0.08823]
[1641245686017,0.14033567,46207.0,46202.0,0.00819995]
[1641245686217,0.14033567,46207.0,46201.0,0.08823]
[1641245686818,0.14033567,46207.0,46206.0,0.00819995]
[1641245687817,0.26033567,46207.0,46206.0,0.146]
[1641245688019,0.43213572,46207.0,46206.0,0.146]
[1641245688220,0.26033567,46207.0,46206.0,0.146]
[1641245688419,0.43213572,46207.0,46206.0,0.15419995]
[1641245688719,0.26033567,46207.0,46206.0,0.15419995]
[1641245689218,0.14033567,46207.0,46206.0,0.00819995]
[1641245689418,0.14033567,46207.0,46203.0,0.00819995]
[1641245689618,0.31213572,46207.0,46206.0,0.00819995]
[1641245689818,0.31213572,46207.0,46206.0,0.15419995]
[1641245690019,0.31213572,46207.0,46206.0,0.146]
[1641245690420,0.31213572,46207.0,46206.0,0.15419995]
[1641245690620,0.31213572,46207.0,46206.0,0.146]
[1641245691019,0.31213572,46207.0,46201.0,0.08823]
[1641245691220,0.31213572,46207.0,46206.0,0.00819995]
[1641245691418,0.31213572,46207.0,46206.0,0.09705995]
[1641245691620,0.14033567,46207.0,46206.0,0.09705995]
[1641245691919,0.27533567,46207.0,46206.0,0.23386]
[1641245692119,0.135,46207.0,46206.0,0.24205995]
[1641245693120,0.14033567,46214.0,46206.0,0.42125795]
[1641245693319,0.14033567,46214.0,46213.0,0.00819995]
[1641245693719,0.27033567,46214.0,46213.0,0.00819995]
[1641245693920,0.13,46214.0,46213.0,0.00819995]
[1641245694922,0.13,46214.0,46213.0,0.14853562]
[1641245695123,0.17180005,46221.0,46213.0,0.14853562]
[1641245695321,0.17180005,46221.0,46216.0,0.00819995]
[1641245695523,0.17180005,46221.0,46220.0,0.00819995]
[1641245695728,0.31480005,46221.0,46216.0,0.19921]
[1641245695922,0.31480005,46221.0,46216.0,0.20740995]
[1641245696122,0.31480005,46221.0,46216.0,0.19921]
[1641245697125,0.15012967,46224.0,46216.0,0.06621]
[1641245697343,0.15012967,46224.0,46220.0,0.00819995]
[1641245697728,0.29612967,46224.0,46220.0,0.00819995]
[1641245698329,0.17180005,46221.0,46216.0,0.12719995]
[1641245698526,0.29612967,46224.0,46216.0,0.12719995]
[1641245698725,0.17180005,46221.0,46216.0,0.12719995]
[1641245698926,0.17180005,46221.0,46216.0,0.119]
[1641245699127,0.19343721,46220.0,46213.0,0.14033567]
[1641245699327,0.17180005,46214.0,46213.0,0.14033567]
[1641245699529,0.24144005,46214.0,46213.0,0.14033567]
[1641245699727,0.06964,46214.0,46213.0,0.14033567]
[1641245699927,0.21364,46214.0,46213.0,0.28133567]
[1641245701131,0.06964,46214.0,46213.0,0.14033567]
[1641245701329,0.85471514,46215.0,46213.0,0.14033567]
[1641245701529,0.85471514,46215.0,46214.0,0.00819995]
[1641245702130,0.85471514,46215.0,46213.0,0.28833567]
[1641245702432,0.85471514,46217.0,46213.0,0.28833567]
[1641245702632,0.85471514,46217.0,46216.0,0.00819995]
[1641245703433,0.85471514,46217.0,46213.0,0.23419562]
[1641245703935,0.85471514,46217.0,46216.0,0.15419995]
[1641245705147,0.85471514,46217.0,46216.0,0.00819995]
[1641245705348,0.85471514,46217.0,46213.0,0.22599567]
[1641245705550,0.85471514,46217.0,46216.0,0.00819995]
[1641245705748,0.132,46217.0,46216.0,0.15319995]
[1641245705946,0.30380005,46217.0,46216.0,0.145]
[1641245706148,0.132,46217.0,46216.0,0.15319995]
[1641245706847,0.98671514,46217.0,46216.0,0.15319995]
[1641245707250,0.85471514,46217.0,46216.0,0.00819995]
[1641245707447,0.85471514,46217.0,46216.0,0.02982896]
[1641245707857,0.85471514,46217.0,46216.0,0.17682896]
[1641245708050,0.85471514,46220.0,46216.0,0.35682896]
[1641245708251,0.85471514,46220.0,46219.0,0.00819995]
[1641245708950,0.85471514,46220.0,46216.0,0.17682896]
[1641245709148,0.85471514,46220.0,46216.0,0.00819995]
[1641245709348,0.85471514,46220.0,46219.0,0.00819995]
[1641245709549,0.85471514,46221.0,46219.0,0.00819995]
[1641245709749,0.85471514,46221.0,46216.0,0.00819995]
[1641245709949,0.85471514,46221.0,46216.0,0.147]
[1641245709950,0.13,46220.0,46216.0,0.147]
[1641245710455,0.17180005,46217.0,46216.0,0.147]
[1641245710651,0.18159405,46217.0,46216.0,0.147]
[1641245711050,0.18159405,46217.0,46213.0,0.14853562]
[1641245711252,0.009794,46217.0,46213.0,0.14033567]
[1641245711450,0.009794,46217.0,46216.0,0.00819995]
[1641245711851,0.14033567,46224.0,46216.0,0.00819995]
[1641245712051,0.17180005,46221.0,46213.0,0.28533567]
[1641245712352,0.009794,46223.0,46217.0,0.00819995]
[1641245712553,0.17180005,46222.0,46218.0,0.00819995]
[1641245713152,0.14033567,46224.0,46221.0,0.00819995]
[1641245713353,0.14033567,46229.0,46221.0,0.18819995]
[1641245713654,0.14033567,46229.0,46228.0,0.00819995]
[1641245713854,0.14033567,46229.0,46228.0,0.07260995]
[1641245714154,0.28333567,46229.0,46228.0,0.07360995]
[1641245714352,0.28333567,46229.0,46228.0,0.07260995]
[1641245714953,0.28333567,46229.0,46228.0,0.06441]
[1641245715353,0.14033567,46229.0,46228.0,0.06441]
[1641245715559,0.31213572,46229.0,46223.0,0.14033567]
[1641245715755,0.17180005,46224.0,46223.0,0.14033567]
[1641245715954,0.18,46224.0,46213.0,0.14033567]
[1641245716253,0.15599728,46225.0,46214.0,0.20163178]
[1641245716453,0.009794,46225.0,46214.0,0.18]
[1641245716654,0.009794,46225.0,46218.0,0.02162992]
[1641245716853,0.28233567,46229.0,46214.0,0.18]
[1641245717055,0.28233567,46229.0,46219.0,0.20162959]
[1641245717255,0.14033567,46229.0,46219.0,0.20162959]
[1641245717458,0.009794,46228.0,46218.0,0.09071]
[1641245717656,0.009794,46228.0,46218.0,0.27071]
[1641245717855,0.009794,46228.0,46218.0,0.09071]
[1641245717856,0.85529193,46219.0,46218.0,0.09071]
[1641245718057,0.85529193,46219.0,46218.0,0.39933864]
[1641245718457,0.85529193,46219.0,46218.0,0.21933864]
[1641245718656,0.85529193,46219.0,46218.0,0.19671]
[1641245718857,0.94122193,46219.0,46218.0,0.106]
[1641245719057,0.08593,46219.0,46218.0,0.73917304]
[1641245719258,0.08593,46219.0,46218.0,0.63317304]
[1641245719860,0.08593,46219.0,46213.0,0.14033567]
[1641245720058,0.009794,46218.0,46213.0,0.14033567]
[1641245720864,1.33184562,46219.0,46217.0,0.20163034]
[1641245721065,0.14033567,46229.0,46218.0,0.14033567]
[1641245721266,0.14033567,46229.0,46227.0,0.18]
[1641245721463,0.14033567,46229.0,46228.0,0.001]
[1641245722067,0.22933567,46229.0,46228.0,0.118]
[1641245722465,0.22933567,46229.0,46228.0,0.441154]
[1641245722866,0.22933567,46229.0,46228.0,0.118]
[1641245723169,0.089,46229.0,46228.0,0.118]
[1641245723369,0.0001,46230.0,46228.0,0.001]
[1641245723568,0.0001,46230.0,46229.0,0.001]
[1641245723969,0.0001,46230.0,46229.0,0.323468]
[1641245724169,0.0001,46230.0,46229.0,0.02262303]
[1641245724469,0.0001,46230.0,46229.0,0.34835603]
[1641245725069,0.0001,46230.0,46229.0,0.001]
[1641245726171,0.0001,46230.0,46229.0,0.14362273]
[1641245726771,0.0001,46230.0,46229.0,0.122]
[1641245727570,0.0001,46230.0,46229.0,0.36332]
[1641245727772,2.68278877,46248.0,46229.0,0.39715303]
[1641245727972,2.68278877,46248.0,46242.0,0.18]
[1641245727973,0.69838877,46247.0,46242.0,0.18]
[1641245728176,0.69838877,46247.0,46246.0,0.001]
[1641245729276,0.69838877,46247.0,46246.0,0.181]
[1641245729476,0.69838877,46247.0,46246.0,0.20261702]
[1641245729676,0.69838877,46247.0,46246.0,0.02261702]
[1641245729878,0.87838877,46247.0,46234.0,0.02162237]
[1641245730081,0.18,46241.0,46234.0,0.02162237]
[1641245730279,0.18,46238.0,46234.0,0.02162237]
[1641245730482,0.18,46238.0,46228.0,0.02162543]
[1641245730682,0.18,46238.0,46237.0,1.36920733]
[1641245730879,0.189794,46238.0,46230.0,2.10545651]
[1641245731082,0.18,46232.0,46230.0,2.10545651]
[1641245731280,0.27265,46232.0,46230.0,2.10545651]
[1641245731581,0.27265,46232.0,46223.0,0.14033567]
[1641245731582,0.18,46231.0,46223.0,0.14033567]
[1641245731778,0.09265,46232.0,46223.0,0.14033567]
[1641245731779,0.18,46233.0,46224.0,0.02162718]
[1641245731983,0.18,46233.0,46224.0,0.03384198]
[1641245732182,0.14033567,46237.0,46228.0,0.02162543]
[1641245733382,0.14033567,46237.0,46228.0,0.10801543]
[1641245733586,0.14033567,46237.0,46229.0,0.18]
[1641245733785,0.14033567,46237.0,46233.0,0.18]
[1641245734181,0.14033567,46237.0,46236.0,0.02162103]
[1641245734784,0.32033567,46237.0,46228.0,0.119]
[1641245734984,0.22629567,46237.0,46228.0,0.119]
[1641245735185,0.22629567,46237.0,46236.0,0.47207231]
[1641245735983,0.14033567,46237.0,46229.0,0.47207231]
[1641245736187,0.14033567,46237.0,46236.0,0.118]
[1641245736483,0.32033567,46237.0,46236.0,0.118]
[1641245737287,0.14033567,46237.0,46229.0,0.47207231]
[1641245737686,0.14033567,46237.0,46236.0,0.47207231]
[1641245738186,0.32033567,46237.0,46236.0,0.47207231]
[1641245738986,1.54178887,46237.0,46229.0,0.118]
[1641245739188,1.36178887,46237.0,46229.0,0.118]
[1641245739386,1.36178887,46237.0,46224.0,1.81698]
[1641245739995,1.36178887,46237.0,46224.0,1.93398]
[1641245740195,0.85503284,46234.0,46230.0,0.47207231]
[1641245741199,0.85503284,46234.0,46227.0,0.02162555]
[1641245741596,0.009794,46233.0,46225.0,0.47207231]
[1641245741997,0.06,46226.0,46225.0,0.47207231]
[1641245742199,0.189794,46226.0,46225.0,0.59007231]
[1641245742398,0.010794,46226.0,46225.0,0.118]
[1641245742597,0.190794,46226.0,46225.0,0.118]
[1641245742800,0.43356853,46226.0,46223.0,1.34490769]
[1641245742999,0.14033567,46224.0,46223.0,1.34490769]
[1641245743399,0.19929567,46224.0,46223.0,1.34490769]
[1641245743998,0.19929567,46224.0,46216.0,1.50522379]
[1641245744200,0.19929567,46224.0,46215.0,1.34490769]
[1641245744201,0.18,46222.0,46215.0,1.34490769]
[1641245744398,0.32029567,46224.0,46215.0,1.34490769]
[1641245744600,0.18,46222.0,46216.0,0.01221744]
[1641245744799,0.18,46219.0,46216.0,0.01221744]
[1641245744999,0.189794,46219.0,46215.0,1.34490769]
[1641245745202,0.189794,46219.0,46213.0,0.16196799]
[1641245745400,0.009794,46219.0,46213.0,0.16196799]
[1641245745601,0.189794,46219.0,46214.0,0.01221725]
[1641245746208,0.307794,46219.0,46214.0,0.07921725]
[1641245746606,0.127794,46219.0,46215.0,0.01221725]
[1641245746810,0.20163896,46216.0,46210.0,1.34490769]
[1641245747014,0.18,46211.0,46210.0,1.34490769]
[1641245747212,0.189794,46211.0,46210.0,1.34490769]
[1641245747409,0.189794,46211.0,46196.0,0.16197611]
[1641245747614,0.20164572,46204.0,46193.0,1.61532278]
[1641245747809,0.18,46195.0,46193.0,1.61532278]
[1641245748408,0.19667138,46195.0,46193.0,1.61532278]
[1641245748609,0.19667138,46195.0,46182.0,1.84629684]
[1641245748610,0.21832187,46195.0,46182.0,1.84629684]
[1641245748811,0.18,46187.0,46182.0,1.84629684]
[1641245749009,0.14033567,46183.0,46182.0,1.84629684]
[1641245749912,0.1472163,46183.0,46172.0,0.18]
[1641245750111,0.4340103,46183.0,46163.0,2.0486]
[1641245750311,0.4340103,46183.0,46173.0,0.11131214]
[1641245750509,0.00688063,46182.0,46173.0,0.11131214]
[1641245750710,0.00688063,46182.0,46172.0,0.11131214]
[1641245751012,0.00688063,46182.0,46167.0,0.18]
[1641245751211,0.00688063,46182.0,46177.0,0.18]
[1641245751414,0.00688063,46182.0,46177.0,0.25657]
[1641245751810,0.14033567,46183.0,46181.0,0.18]
[1641245752210,0.094,46182.0,46181.0,0.18]
[1641245752611,0.094,46182.0,46181.0,0.20164639]
[1641245752811,0.10100221,46182.0,46181.0,0.02164639]
[1641245753212,0.10100221,46182.0,46181.0,0.02264639]
[1641245753511,0.10100221,46182.0,46181.0,0.02164639]
[1641245753512,0.00700221,46182.0,46181.0,0.02164639]
[1641245753712,0.00700221,46182.0,46175.0,1.444887]
[1641245754114,0.10200221,46182.0,46175.0,1.444887]
[1641245754713,0.00700221,46181.0,46176.0,0.18]
[1641245755114,0.00700221,46181.0,46180.0,0.0216475]
[1641245755413,0.00700221,46181.0,46176.0,0.2016491]
[1641245755814,0.009794,46180.0,46175.0,1.444887]
[1641245756416,0.00700221,46179.0,46175.0,1.444887]
[1641245756814,0.18,46178.0,46164.0,1.60822169]
[1641245757016,0.00700221,46179.0,46178.0,1.36239122]
[1641245757216,0.44065906,46179.0,46162.0,0.02]
[1641245757417,0.18,46173.0,46162.0,0.02]
[1641245757918,0.00700221,46172.0,46162.0,0.02]
[1641245758118,0.00700221,46172.0,46163.0,0.09171841]
[1641245759022,0.14033567,46166.0,46163.0,0.09171841]
[1641245759218,0.21667567,46166.0,46163.0,0.09171841]
[1641245759418,0.00700221,46165.0,46163.0,0.09171841]
[1641245760318,0.10500221,46165.0,46163.0,0.09171841]
[1641245760720,0.00700221,46164.0,46163.0,0.09171841]
[1641245762019,0.21667567,46166.0,46163.0,0.09171841]
[1641245762020,0.00700221,46165.0,46163.0,0.09171841]
[1641245762220,0.10600221,46164.0,46163.0,0.09171841]
[1641245762820,0.11579621,46164.0,46163.0,0.09171841]
[1641245763219,0.11579621,46164.0,46163.0,0.10394715]
[1641245763419,0.01679621,46164.0,46163.0,0.10394715]
[1641245763719,0.19679621,46164.0,46163.0,0.10394715]
[1641245764121,0.29379621,46164.0,46163.0,0.01222874]
[1641245764719,0.11379621,46164.0,46163.0,0.01222874]
[1641245764921,0.29379621,46164.0,46163.0,0.01222874]
[1641245765119,0.11379621,46164.0,46163.0,0.01222874]
[1641245765518,0.01679621,46164.0,46163.0,0.01222874]
[1641245765719,0.19679621,46164.0,46163.0,0.01222874]
[1641245766020,0.01679621,46164.0,46163.0,0.01222874]
[1641245766320,0.29379621,46164.0,46162.0,0.02]
[1641245766519,0.18,46163.0,46162.0,0.02]
[1641245766724,0.11379621,46164.0,46162.0,0.02]
[1641245766921,0.18700221,46163.0,46162.0,0.02]
[1641245767121,0.00700221,46163.0,46162.0,0.02]
[1641245767322,0.00700221,46163.0,46162.0,0.032229]
[1641245767523,0.18700221,46163.0,46162.0,0.02]
[1641245767722,0.18700221,46163.0,46156.0,0.14033567]
[1641245767723,0.20866616,46163.0,46156.0,0.14033567]